[Event "Titled Tuesday Blitz October 31 Early 2023"]
[White "Polaczek, Richard"]
[Black "Kashefi, Amir Hosein"]
[WhiteFideId "200026"]
[BlackFideId "12557935"]
[WhiteElo "2410"]
[BlackElo "2621"]
[Result "1-0"]
[Round "3"]
[TimeControl "180+1"]
[Date "2023.10.31"]
[WhiteClock "0:00:08"]
[BlackClock "0:00:00"]
[Board "103"]

1. d4 {[%clk 0:02:59]}  d5 {[%clk 0:02:32]} 2. c4 {[%clk 0:02:58]}  c6 {[%clk 0:02:32]} 3. Nc3 {[%clk 0:02:57]}  Nf6 {[%clk 0:02:32]} 4. cxd5 {[%clk 0:02:56]}  cxd5 {[%clk 0:02:30]} 5. Bf4 {[%clk 0:02:56]}  Nc6 {[%clk 0:02:30]} 6. e3 {[%clk 0:02:56]}  a6 {[%clk 0:02:28]} 7. Rc1 {[%clk 0:02:55]}  Bg4 {[%clk 0:02:25]} 8. f3 {[%clk 0:02:54]}  Bh5 {[%clk 0:02:20]} 9. g4 {[%clk 0:02:53]}  Bg6 {[%clk 0:02:20]} 10. h4 {[%clk 0:02:52]}  h6 {[%clk 0:02:19]} 11. Kf2 {[%clk 0:02:41]}  e6 {[%clk 0:02:13]} 12. a3 {[%clk 0:02:39]}  Bd6 {[%clk 0:02:12]} 13. Nge2 {[%clk 0:02:39]}  Rc8 {[%clk 0:02:07]} 14. Bxd6 {[%clk 0:02:26]}  Qxd6 {[%clk 0:02:08]} 15. Nf4 {[%clk 0:02:25]}  Bh7 {[%clk 0:02:05]} 16. Be2 {[%clk 0:02:17]}  Ng8 {[%clk 0:01:46]} 17. g5 {[%clk 0:02:07]}  Nge7 {[%clk 0:01:45]} 18. Qg1 {[%clk 0:01:47]}  Kd7 {[%clk 0:01:14]} 19. Na4 {[%clk 0:01:20]}  Kc7 {[%clk 0:00:56]} 20. Nc5 {[%clk 0:01:19]}  Kb8 {[%clk 0:00:56]} 21. gxh6 {[%clk 0:01:18]}  gxh6 {[%clk 0:00:55]} 22. Qg7 {[%clk 0:01:15]}  Rcf8 {[%clk 0:00:45]} 23. Nfd3 {[%clk 0:00:59]}  Bxd3 {[%clk 0:00:43]} 24. Bxd3 {[%clk 0:00:47]}  h5 {[%clk 0:00:35]} 25. Qg3 {[%clk 0:00:46]}  Qxg3+ {[%clk 0:00:32]} 26. Kxg3 {[%clk 0:00:46]}  Rfg8+ {[%clk 0:00:31]} 27. Kf2 {[%clk 0:00:45]}  Rg7 {[%clk 0:00:31]} 28. b4 {[%clk 0:00:42]}  Rhg8 {[%clk 0:00:30]} 29. Bf1 {[%clk 0:00:40]}  Nf5 {[%clk 0:00:02]} 30. Nd7+ {[%clk 0:00:40]}  Kc7 {[%clk 0:00:02]} 31. Nf6 {[%clk 0:00:40]}  Rh8 {[%clk 0:00:02]} 32. Bd3 {[%clk 0:00:31]}  Kd6 {[%clk 0:00:02]} 33. Bxf5 {[%clk 0:00:29]}  exf5 {[%clk 0:00:03]} 34. Rc5 {[%clk 0:00:27]}  Ke6 {[%clk 0:00:02]} 35. Nxd5 {[%clk 0:00:26]}  f4 {[%clk 0:00:02]} 36. Nxf4+ {[%clk 0:00:26]}  Kd6 {[%clk 0:00:02]} 37. Rxh5 {[%clk 0:00:23]}  Rhg8 {[%clk 0:00:02]} 38. Rf5 {[%clk 0:00:20]}  Rh7 {[%clk 0:00:01]} 39. h5 {[%clk 0:00:20]}  Rhg7 {[%clk 0:00:01]} 40. h6 {[%clk 0:00:20]}  Rh7 {[%clk 0:00:02]} 41. Rf6+ {[%clk 0:00:20]}  Ke7 {[%clk 0:00:02]} 42. Nd5+ {[%clk 0:00:20]}  Kf8 {[%clk 0:00:02]} 43. Ke2 {[%clk 0:00:18]}  Ke8 {[%clk 0:00:02]} 44. Kd3 {[%clk 0:00:17]}  Nd8 {[%clk 0:00:02]} 45. Nf4 {[%clk 0:00:16]}  Nc6 {[%clk 0:00:02]} 46. d5 {[%clk 0:00:14]}  Ne7 {[%clk 0:00:03]} 47. Rb6 {[%clk 0:00:13]}  Ng6 {[%clk 0:00:02]} 48. Rxb7 {[%clk 0:00:09]}  Nxf4+ {[%clk 0:00:01]} 49. exf4 {[%clk 0:00:10]}  Rg2 {[%clk 0:00:01]} 50. Rb8+ {[%clk 0:00:08]}  Kd7 {[%clk 0:00:02]} 51. Ke4 {[%clk 0:00:08]}  f6 {[%clk 0:00:01]} 52. Rb7+ {[%clk 0:00:07]}  Kd6 {[%clk 0:00:01]} 53. Rxh7 {[%clk 0:00:08]}  f5+ {[%clk 0:00:00]} 54. Kxf5 {[%clk 0:00:08]} 1-0


[Site "https://www.chess.com"]

[Event "Titled Tuesday Blitz October 31 Early 2023"]
[White "Begunov, Konstantin"]
[Black "kushbhagat2009"]
[WhiteFideId "4118510"]
[WhiteElo "2409"]
[BlackElo "2621"]
[Result "0-1"]
[Round "3"]
[TimeControl "180+1"]
[Date "2023.10.31"]
[WhiteClock "0:00:00"]
[BlackClock "0:00:04"]
[Board "104"]

1. d4 {[%clk 0:03:00]}  Nf6 {[%clk 0:02:57]} 2. c4 {[%clk 0:02:50]}  g6 {[%clk 0:02:49]} 3. f3 {[%clk 0:02:50]}  Bg7 {[%clk 0:02:46]} 4. e4 {[%clk 0:02:50]}  d6 {[%clk 0:02:47]} 5. Nc3 {[%clk 0:02:50]}  O-O {[%clk 0:02:47]} 6. Be3 {[%clk 0:02:50]}  c5 {[%clk 0:02:48]} 7. dxc5 {[%clk 0:02:51]}  dxc5 {[%clk 0:02:48]} 8. Qxd8 {[%clk 0:02:52]}  Rxd8 {[%clk 0:02:49]} 9. Bxc5 {[%clk 0:02:53]}  Nc6 {[%clk 0:02:49]} 10. Nd5 {[%clk 0:02:53]}  Nd7 {[%clk 0:02:46]} 11. Nxe7+ {[%clk 0:02:53]}  Nxe7 {[%clk 0:02:45]} 12. Bxe7 {[%clk 0:02:54]}  Bxb2 {[%clk 0:02:38]} 13. Bxd8 {[%clk 0:02:54]}  Bc3+ {[%clk 0:02:39]} 14. Kd1 {[%clk 0:02:53]}  Bxa1 {[%clk 0:02:39]} 15. Ne2 {[%clk 0:02:50]}  Ne5 {[%clk 0:02:33]} 16. Nf4 {[%clk 0:02:48]}  Bd7 {[%clk 0:02:20]} 17. Bc7 {[%clk 0:02:48]}  Ba4+ {[%clk 0:02:20]} 18. Kc1 {[%clk 0:02:45]}  Rc8 {[%clk 0:01:42]} 19. Nd5 {[%clk 0:02:45]}  Kg7 {[%clk 0:01:34]} 20. Kb1 {[%clk 0:02:42]}  Bd4 {[%clk 0:01:31]} 21. Be2 {[%clk 0:02:43]}  Nd7 {[%clk 0:01:16]} 22. Ba5 {[%clk 0:01:54]}  b5 {[%clk 0:01:13]} 23. Rc1 {[%clk 0:01:31]}  Rb8 {[%clk 0:00:58]} 24. Bc7 {[%clk 0:01:01]}  Rb7 {[%clk 0:00:57]} 25. cxb5 {[%clk 0:01:00]}  Bxb5 {[%clk 0:00:57]} 26. Bxb5 {[%clk 0:00:58]}  Rxb5+ {[%clk 0:00:58]} 27. Kc2 {[%clk 0:00:59]}  Rb2+ {[%clk 0:00:29]} 28. Kd3 {[%clk 0:00:58]}  Be5 {[%clk 0:00:14]} 29. Rc2 {[%clk 0:00:57]}  Rb1 {[%clk 0:00:09]} 30. Bxe5+ {[%clk 0:00:46]}  Nxe5+ {[%clk 0:00:10]} 31. Kd4 {[%clk 0:00:47]}  Nd7 {[%clk 0:00:11]} 32. Rc7 {[%clk 0:00:34]}  Rd1+ {[%clk 0:00:11]} 33. Ke3 {[%clk 0:00:33]}  Nb6 {[%clk 0:00:08]} 34. Rxa7 {[%clk 0:00:28]}  Nxd5+ {[%clk 0:00:03]} 35. exd5 {[%clk 0:00:29]}  Rxd5 {[%clk 0:00:04]} 36. Ra3 {[%clk 0:00:20]}  Rd1 {[%clk 0:00:04]} 37. Rd3 {[%clk 0:00:19]}  Ra1 {[%clk 0:00:04]} 38. Rd2 {[%clk 0:00:05]}  h5 {[%clk 0:00:04]} 39. Kd4 {[%clk 0:00:04]}  Kf6 {[%clk 0:00:04]} 40. Kc5 {[%clk 0:00:03]}  Kf5 {[%clk 0:00:04]} 41. Rb2 {[%clk 0:00:01]}  f6 {[%clk 0:00:04]} 42. Kb5 {[%clk 0:00:01]}  g5 {[%clk 0:00:04]} 43. a4 {[%clk 0:00:00]}  g4 {[%clk 0:00:04]} 0-1


[Site "https://www.chess.com"]

[Event "Titled Tuesday Blitz October 31 Early 2023"]
[White "Kukreja Sankalp"]
[Black "Pinheiro, Iung Alicio de O."]
[WhiteFideId "45027676"]
[BlackFideId "2104350"]
[WhiteElo "2406"]
[BlackElo "2619"]
[Result "0-1"]
[Round "3"]
[TimeControl "180+1"]
[Date "2023.10.31"]
[WhiteClock "0:00:16"]
[BlackClock "0:00:13"]
[Board "105"]

1. e4 {[%clk 0:02:46]}  c5 {[%clk 0:02:56]} 2. Nf3 {[%clk 0:02:46]}  Nc6 {[%clk 0:02:55]} 3. d4 {[%clk 0:02:46]}  cxd4 {[%clk 0:02:55]} 4. Nxd4 {[%clk 0:02:47]}  e5 {[%clk 0:02:54]} 5. Nb5 {[%clk 0:02:46]}  d6 {[%clk 0:02:54]} 6. N1c3 {[%clk 0:02:45]}  a6 {[%clk 0:02:53]} 7. Na3 {[%clk 0:02:45]}  Be7 {[%clk 0:02:46]} 8. Nd5 {[%clk 0:02:41]}  Nf6 {[%clk 0:02:33]} 9. Be3 {[%clk 0:02:39]}  Nxd5 {[%clk 0:02:27]} 10. exd5 {[%clk 0:02:39]}  Nb8 {[%clk 0:02:27]} 11. Bd3 {[%clk 0:02:34]}  O-O {[%clk 0:02:21]} 12. O-O {[%clk 0:02:33]}  f5 {[%clk 0:02:19]} 13. f4 {[%clk 0:02:34]}  Nd7 {[%clk 0:02:14]} 14. c4 {[%clk 0:02:28]}  b6 {[%clk 0:01:38]} 15. Nc2 {[%clk 0:02:25]}  a5 {[%clk 0:01:38]} 16. Rc1 {[%clk 0:02:09]}  Nc5 {[%clk 0:01:32]} 17. Re1 {[%clk 0:01:39]}  Bf6 {[%clk 0:01:16]} 18. b3 {[%clk 0:01:32]}  Bd7 {[%clk 0:01:11]} 19. Qd2 {[%clk 0:01:09]}  Qe8 {[%clk 0:01:01]} 20. Re2 {[%clk 0:01:05]}  Qh5 {[%clk 0:00:55]} 21. Ne1 {[%clk 0:01:03]}  Rae8 {[%clk 0:00:49]} 22. Rf2 {[%clk 0:00:45]}  h6 {[%clk 0:00:43]} 23. Bb1 {[%clk 0:00:39]}  exf4 {[%clk 0:00:33]} 24. Bxf4 {[%clk 0:00:35]}  Be5 {[%clk 0:00:33]} 25. Nf3 {[%clk 0:00:33]}  g5 {[%clk 0:00:15]} 26. Bxe5 {[%clk 0:00:26]}  dxe5 {[%clk 0:00:16]} 27. Re1 {[%clk 0:00:26]}  e4 {[%clk 0:00:16]} 28. Nd4 {[%clk 0:00:26]}  f4 {[%clk 0:00:16]} 29. Qc3 {[%clk 0:00:23]}  Qf7 {[%clk 0:00:13]} 30. Rfe2 {[%clk 0:00:23]}  e3 {[%clk 0:00:13]} 31. Qc2 {[%clk 0:00:23]}  Qg7 {[%clk 0:00:13]} 32. Nf3 {[%clk 0:00:20]}  g4 {[%clk 0:00:13]} 33. Nh4 {[%clk 0:00:20]}  f3 {[%clk 0:00:13]} 34. Rxe3 {[%clk 0:00:19]}  f2+ {[%clk 0:00:13]} 35. Qxf2 {[%clk 0:00:18]}  Rxf2 {[%clk 0:00:12]} 36. Rxe8+ {[%clk 0:00:19]}  Bxe8 {[%clk 0:00:13]} 37. Rxe8+ {[%clk 0:00:20]}  Rf8 {[%clk 0:00:13]} 38. Rxf8+ {[%clk 0:00:16]}  Qxf8 {[%clk 0:00:13]} 0-1


[Site "https://www.chess.com"]

[Event "Titled Tuesday Blitz October 31 Early 2023"]
[White "Ahmad, Khagan"]
[Black "Xie, Bryan"]
[WhiteFideId "13431552"]
[BlackFideId "30941296"]
[WhiteElo "2611"]
[BlackElo "2403"]
[Result "1-0"]
[Round "3"]
[TimeControl "180+1"]
[Date "2023.10.31"]
[WhiteClock "0:01:00"]
[BlackClock "0:00:11"]
[Board "106"]

1. Nf3 {[%clk 0:02:47]}  d5 {[%clk 0:02:59]} 2. d4 {[%clk 0:02:47]}  Nf6 {[%clk 0:02:57]} 3. c4 {[%clk 0:02:48]}  e6 {[%clk 0:02:54]} 4. g3 {[%clk 0:02:48]}  Be7 {[%clk 0:02:54]} 5. Bg2 {[%clk 0:02:49]}  O-O {[%clk 0:02:54]} 6. O-O {[%clk 0:02:49]}  dxc4 {[%clk 0:02:55]} 7. Qc2 {[%clk 0:02:50]}  a6 {[%clk 0:02:55]} 8. a4 {[%clk 0:02:50]}  Bd7 {[%clk 0:02:55]} 9. Bg5 {[%clk 0:02:50]}  Bc6 {[%clk 0:02:55]} 10. Rd1 {[%clk 0:02:50]}  Nbd7 {[%clk 0:02:55]} 11. Nbd2 {[%clk 0:02:46]}  b5 {[%clk 0:02:45]} 12. b3 {[%clk 0:02:45]}  h6 {[%clk 0:01:57]} 13. Bxf6 {[%clk 0:02:43]}  Nxf6 {[%clk 0:01:58]} 14. axb5 {[%clk 0:02:39]}  axb5 {[%clk 0:01:58]} 15. bxc4 {[%clk 0:02:38]}  b4 {[%clk 0:01:57]} 16. Nb3 {[%clk 0:02:30]}  Be4 {[%clk 0:01:35]} 17. Qb2 {[%clk 0:02:17]}  Qc8 {[%clk 0:01:20]} 18. Ne5 {[%clk 0:01:55]}  Bxg2 {[%clk 0:01:18]} 19. Kxg2 {[%clk 0:01:56]}  Qb7+ {[%clk 0:01:19]} 20. f3 {[%clk 0:01:55]}  Bd6 {[%clk 0:01:06]} 21. Na5 {[%clk 0:01:43]}  Qc8 {[%clk 0:00:37]} 22. Nac6 {[%clk 0:01:39]}  Rxa1 {[%clk 0:00:28]} 23. Rxa1 {[%clk 0:01:34]}  Nd7 {[%clk 0:00:29]} 24. c5 {[%clk 0:01:00]}  Nxe5 {[%clk 0:00:19]} 25. dxe5 {[%clk 0:01:01]}  Bxc5 {[%clk 0:00:20]} 26. Qc2 {[%clk 0:01:01]}  Bb6 {[%clk 0:00:16]} 27. Ne7+ {[%clk 0:01:00]}  Kh8 {[%clk 0:00:13]} 28. Nxc8 {[%clk 0:01:01]}  Rxc8 {[%clk 0:00:11]} 29. Qc6 {[%clk 0:01:00]} 1-0


[Site "https://www.chess.com"]

[Event "Titled Tuesday Blitz October 31 Early 2023"]
[White "ArtemDyachuk"]
[Black "Luong Phuong Hanh"]
[BlackFideId "12401013"]
[WhiteElo "2607"]
[BlackElo "2403"]
[Result "0-1"]
[Round "3"]
[TimeControl "180+1"]
[Date "2023.10.31"]
[WhiteClock "0:00:16"]
[BlackClock "0:00:14"]
[Board "107"]

1. e4 {[%clk 0:03:00]}  c5 {[%clk 0:02:55]} 2. Nf3 {[%clk 0:03:00]}  e6 {[%clk 0:02:51]} 3. d4 {[%clk 0:03:00]}  cxd4 {[%clk 0:02:50]} 4. Nxd4 {[%clk 0:03:00]}  a6 {[%clk 0:02:50]} 5. Bd3 {[%clk 0:02:58]}  Bc5 {[%clk 0:02:47]} 6. Nb3 {[%clk 0:02:58]}  Be7 {[%clk 0:02:47]} 7. c4 {[%clk 0:02:57]}  d6 {[%clk 0:02:45]} 8. Nc3 {[%clk 0:02:57]}  Nf6 {[%clk 0:02:46]} 9. O-O {[%clk 0:02:56]}  O-O {[%clk 0:02:46]} 10. f3 {[%clk 0:02:56]}  Nbd7 {[%clk 0:02:47]} 11. Be3 {[%clk 0:02:55]}  b6 {[%clk 0:02:47]} 12. Rc1 {[%clk 0:02:52]}  Bb7 {[%clk 0:02:48]} 13. Bb1 {[%clk 0:02:52]}  Rc8 {[%clk 0:02:46]} 14. Qe2 {[%clk 0:02:52]}  Ne5 {[%clk 0:02:45]} 15. Na4 {[%clk 0:02:50]}  Nfd7 {[%clk 0:02:43]} 16. f4 {[%clk 0:02:49]}  Nc6 {[%clk 0:02:43]} 17. Nc3 {[%clk 0:02:46]}  Nc5 {[%clk 0:02:33]} 18. Nd4 {[%clk 0:02:44]}  Qc7 {[%clk 0:02:30]} 19. f5 {[%clk 0:02:39]}  Ne5 {[%clk 0:02:22]} 20. b4 {[%clk 0:02:36]}  Ncd7 {[%clk 0:02:08]} 21. fxe6 {[%clk 0:02:33]}  fxe6 {[%clk 0:02:08]} 22. Nxe6 {[%clk 0:02:28]}  Rxf1+ {[%clk 0:02:07]} 23. Qxf1 {[%clk 0:02:10]}  Qxc4 {[%clk 0:02:08]} 24. Qf5 {[%clk 0:01:59]}  Qxb4 {[%clk 0:01:53]} 25. Rf1 {[%clk 0:01:51]}  Qxc3 {[%clk 0:01:45]} 26. Bd4 {[%clk 0:01:44]}  Qd2 {[%clk 0:01:30]} 27. Ba1 {[%clk 0:01:33]}  Rc1 {[%clk 0:01:28]} 28. Nxg7 {[%clk 0:01:17]}  Qe3+ {[%clk 0:01:10]} 29. Kh1 {[%clk 0:01:15]}  Rxf1+ {[%clk 0:01:09]} 30. Qxf1 {[%clk 0:01:16]}  Kxg7 {[%clk 0:01:09]} 31. h3 {[%clk 0:01:16]}  Bh4 {[%clk 0:01:00]} 32. g3 {[%clk 0:01:05]}  Qxg3 {[%clk 0:00:43]} 33. Qf5 {[%clk 0:00:56]}  Qe1+ {[%clk 0:00:18]} 34. Kg2 {[%clk 0:00:48]}  Qe2+ {[%clk 0:00:17]} 35. Kh1 {[%clk 0:00:47]}  Nf6 {[%clk 0:00:17]} 36. Qe6 {[%clk 0:00:19]}  Bxe4+ {[%clk 0:00:15]} 37. Bxe4 {[%clk 0:00:19]}  Qxe4+ {[%clk 0:00:16]} 38. Kg1 {[%clk 0:00:19]}  Qe3+ {[%clk 0:00:16]} 39. Kg2 {[%clk 0:00:14]}  Qf2+ {[%clk 0:00:16]} 40. Kh1 {[%clk 0:00:14]}  Qf3+ {[%clk 0:00:16]} 41. Kh2 {[%clk 0:00:15]}  Bg3+ {[%clk 0:00:13]} 42. Kg1 {[%clk 0:00:15]}  Qf2+ {[%clk 0:00:13]} 43. Kh1 {[%clk 0:00:16]}  Qh2# {[%clk 0:00:14]} 0-1


[Site "https://www.chess.com"]

[Event "Titled Tuesday Blitz October 31 Early 2023"]
[White "Ziatdinov, Raset"]
[Black "Dixit, Nikhil"]
[WhiteFideId "2015323"]
[BlackFideId "5059534"]
[WhiteElo "2403"]
[BlackElo "2607"]
[Result "0-1"]
[Round "3"]
[TimeControl "180+1"]
[Date "2023.10.31"]
[WhiteClock "0:00:07"]
[BlackClock "0:01:31"]
[Board "108"]

1. e4 {[%clk 0:03:00]}  a6 {[%clk 0:02:58]} 2. d4 {[%clk 0:02:59]}  b5 {[%clk 0:02:58]} 3. a4 {[%clk 0:02:57]}  b4 {[%clk 0:02:56]} 4. Bd2 {[%clk 0:02:53]}  Bb7 {[%clk 0:02:55]} 5. Bd3 {[%clk 0:02:49]}  e6 {[%clk 0:02:53]} 6. c3 {[%clk 0:02:49]}  Nf6 {[%clk 0:02:52]} 7. Qe2 {[%clk 0:02:48]}  c5 {[%clk 0:02:43]} 8. cxb4 {[%clk 0:02:31]}  cxd4 {[%clk 0:02:41]} 9. Nf3 {[%clk 0:02:30]}  Be7 {[%clk 0:02:38]} 10. Nxd4 {[%clk 0:02:28]}  Qb6 {[%clk 0:02:36]} 11. Nc2 {[%clk 0:02:25]}  Nc6 {[%clk 0:02:32]} 12. b5 {[%clk 0:02:15]}  axb5 {[%clk 0:02:29]} 13. Bxb5 {[%clk 0:02:14]}  O-O {[%clk 0:02:27]} 14. Nc3 {[%clk 0:02:13]}  Na5 {[%clk 0:02:24]} 15. O-O {[%clk 0:01:59]}  Nb3 {[%clk 0:02:19]} 16. Rad1 {[%clk 0:01:57]}  Nc5 {[%clk 0:02:19]} 17. Be3 {[%clk 0:01:10]}  Qc7 {[%clk 0:02:11]} 18. f3 {[%clk 0:00:45]}  d5 {[%clk 0:02:08]} 19. exd5 {[%clk 0:00:42]}  Nxd5 {[%clk 0:02:08]} 20. Nxd5 {[%clk 0:00:42]}  Bxd5 {[%clk 0:02:08]} 21. Nd4 {[%clk 0:00:37]}  Nxa4 {[%clk 0:02:06]} 22. Bxa4 {[%clk 0:00:36]}  Rxa4 {[%clk 0:02:07]} 23. Qf2 {[%clk 0:00:29]}  Bf6 {[%clk 0:02:02]} 24. Rd2 {[%clk 0:00:25]}  Rc4 {[%clk 0:01:59]} 25. Rfd1 {[%clk 0:00:24]}  Rc8 {[%clk 0:01:59]} 26. h3 {[%clk 0:00:20]}  Rc1 {[%clk 0:01:56]} 27. Qe2 {[%clk 0:00:18]}  Rxd1+ {[%clk 0:01:55]} 28. Rxd1 {[%clk 0:00:17]}  h5 {[%clk 0:01:52]} 29. Qf2 {[%clk 0:00:17]}  h4 {[%clk 0:01:47]} 30. f4 {[%clk 0:00:17]}  Qb7 {[%clk 0:01:46]} 31. Nf3 {[%clk 0:00:17]}  Bxf3 {[%clk 0:01:45]} 32. Qxf3 {[%clk 0:00:17]}  Qxf3 {[%clk 0:01:45]} 33. gxf3 {[%clk 0:00:18]}  Bxb2 {[%clk 0:01:46]} 34. Bf2 {[%clk 0:00:17]}  Bf6 {[%clk 0:01:46]} 35. Re1 {[%clk 0:00:10]}  Kh8 {[%clk 0:01:46]} 36. Re4 {[%clk 0:00:09]}  Kh7 {[%clk 0:01:46]} 37. Ra4 {[%clk 0:00:09]}  Kg6 {[%clk 0:01:46]} 38. f5+ {[%clk 0:00:09]}  Kxf5 {[%clk 0:01:46]} 39. Bxh4 {[%clk 0:00:10]}  Bxh4 {[%clk 0:01:44]} 40. Rxh4 {[%clk 0:00:10]}  Rc2 {[%clk 0:01:38]} 41. Kf1 {[%clk 0:00:10]}  g5 {[%clk 0:01:35]} 42. Rg4 {[%clk 0:00:10]}  Rh2 {[%clk 0:01:33]} 43. Rg3 {[%clk 0:00:09]}  Kf4 {[%clk 0:01:30]} 44. Rg4+ {[%clk 0:00:09]}  Kxf3 {[%clk 0:01:29]} 45. Rxg5 {[%clk 0:00:08]}  Rh1+ {[%clk 0:01:29]} 46. Rg1 {[%clk 0:00:08]}  Rxg1+ {[%clk 0:01:30]} 47. Kxg1 {[%clk 0:00:07]}  Kg3 {[%clk 0:01:31]} 0-1


[Site "https://www.chess.com"]

[Event "Titled Tuesday Blitz October 31 Early 2023"]
[White "Haitin, Ilja"]
[Black "NelsonLinda"]
[WhiteFideId "4501764"]
[WhiteElo "2390"]
[BlackElo "2596"]
[Result "0-1"]
[Round "3"]
[TimeControl "180+1"]
[Date "2023.10.31"]
[WhiteClock "0:00:00"]
[BlackClock "0:00:08"]
[Board "111"]

1. Nf3 {[%clk 0:02:31]}  Nf6 {[%clk 0:02:56]} 2. g3 {[%clk 0:02:30]}  g6 {[%clk 0:02:49]} 3. b3 {[%clk 0:02:30]}  Bg7 {[%clk 0:02:50]} 4. Bb2 {[%clk 0:02:31]}  c5 {[%clk 0:02:46]} 5. c4 {[%clk 0:02:30]}  b6 {[%clk 0:02:43]} 6. Bg2 {[%clk 0:02:30]}  Bb7 {[%clk 0:02:44]} 7. O-O {[%clk 0:02:30]}  O-O {[%clk 0:02:45]} 8. Nc3 {[%clk 0:02:24]}  Ne4 {[%clk 0:02:27]} 9. Qc2 {[%clk 0:02:20]}  Nxc3 {[%clk 0:02:13]} 10. Bxc3 {[%clk 0:02:20]}  Bxc3 {[%clk 0:02:13]} 11. Qxc3 {[%clk 0:02:21]}  d6 {[%clk 0:02:11]} 12. h4 {[%clk 0:02:14]}  h5 {[%clk 0:02:06]} 13. d4 {[%clk 0:02:06]}  cxd4 {[%clk 0:01:55]} 14. Qxd4 {[%clk 0:02:04]}  Nd7 {[%clk 0:01:51]} 15. Qf4 {[%clk 0:01:59]}  Bxf3 {[%clk 0:01:44]} 16. Bxf3 {[%clk 0:01:57]}  Rc8 {[%clk 0:01:45]} 17. Qh6 {[%clk 0:01:51]}  Nf6 {[%clk 0:01:42]} 18. Rad1 {[%clk 0:01:42]}  Qd7 {[%clk 0:01:37]} 19. Kg2 {[%clk 0:01:32]}  Qf5 {[%clk 0:01:33]} 20. Rd4 {[%clk 0:01:27]}  b5 {[%clk 0:01:27]} 21. Rf4 {[%clk 0:01:24]}  Qe5 {[%clk 0:01:25]} 22. Rd1 {[%clk 0:01:00]}  bxc4 {[%clk 0:01:23]} 23. bxc4 {[%clk 0:00:58]}  Rc5 {[%clk 0:01:23]} 24. Rd3 {[%clk 0:00:53]}  Re8 {[%clk 0:00:58]} 25. Re3 {[%clk 0:00:46]}  Qb2 {[%clk 0:00:58]} 26. a4 {[%clk 0:00:15]}  a5 {[%clk 0:00:57]} 27. Rd3 {[%clk 0:00:08]}  Nd7 {[%clk 0:00:50]} 28. Re3 {[%clk 0:00:07]}  Qg7 {[%clk 0:00:48]} 29. Qxg7+ {[%clk 0:00:04]}  Kxg7 {[%clk 0:00:47]} 30. Rb3 {[%clk 0:00:03]}  Ne5 {[%clk 0:00:42]} 31. Rb5 {[%clk 0:00:02]}  Rec8 {[%clk 0:00:37]} 32. Rd4 {[%clk 0:00:02]}  Nxc4 {[%clk 0:00:34]} 33. Rd3 {[%clk 0:00:02]}  Ne5 {[%clk 0:00:30]} 34. Re3 {[%clk 0:00:02]}  Rxb5 {[%clk 0:00:28]} 35. axb5 {[%clk 0:00:03]}  Rb8 {[%clk 0:00:29]} 36. Rb3 {[%clk 0:00:03]}  a4 {[%clk 0:00:27]} 37. Rb1 {[%clk 0:00:03]}  a3 {[%clk 0:00:27]} 38. Ra1 {[%clk 0:00:01]}  Nc4 {[%clk 0:00:25]} 39. Rc1 {[%clk 0:00:01]}  a2 {[%clk 0:00:10]} 40. Ra1 {[%clk 0:00:01]}  Rxb5 {[%clk 0:00:09]} 41. Rxa2 {[%clk 0:00:02]}  Ne5 {[%clk 0:00:08]} 42. Ra7 {[%clk 0:00:02]}  Kf6 {[%clk 0:00:08]} 43. e3 {[%clk 0:00:02]}  Nxf3 {[%clk 0:00:07]} 44. Kxf3 {[%clk 0:00:03]}  d5 {[%clk 0:00:08]} 45. Ra6+ {[%clk 0:00:03]}  Kf5 {[%clk 0:00:07]} 46. Ra4 {[%clk 0:00:03]}  Rb7 {[%clk 0:00:07]} 47. Rf4+ {[%clk 0:00:03]}  Ke6 {[%clk 0:00:07]} 48. Ra4 {[%clk 0:00:03]}  Rd7 {[%clk 0:00:06]} 49. Ra6+ {[%clk 0:00:04]}  Rd6 {[%clk 0:00:07]} 50. Ra7 {[%clk 0:00:05]}  Rd7 {[%clk 0:00:06]} 51. Ra6+ {[%clk 0:00:05]}  Ke5 {[%clk 0:00:07]} 52. Ra5 {[%clk 0:00:05]}  e6 {[%clk 0:00:04]} 53. Rb5 {[%clk 0:00:05]}  f6 {[%clk 0:00:04]} 54. Ra5 {[%clk 0:00:05]}  Rg7 {[%clk 0:00:05]} 55. Ra6 {[%clk 0:00:05]}  g5 {[%clk 0:00:05]} 56. Ke2 {[%clk 0:00:02]}  gxh4 {[%clk 0:00:05]} 57. gxh4 {[%clk 0:00:02]}  Rg4 {[%clk 0:00:06]} 58. f4+ {[%clk 0:00:02]}  Kf5 {[%clk 0:00:06]} 59. Ra8 {[%clk 0:00:01]}  Rxh4 {[%clk 0:00:06]} 60. Rh8 {[%clk 0:00:02]}  Rh2+ {[%clk 0:00:07]} 61. Kf3 {[%clk 0:00:02]}  Rh3+ {[%clk 0:00:07]} 62. Kf2 {[%clk 0:00:02]}  d4 {[%clk 0:00:05]} 63. exd4 {[%clk 0:00:01]}  Kxf4 {[%clk 0:00:05]} 64. Rh6 {[%clk 0:00:02]}  Kf5 {[%clk 0:00:05]} 65. Rh8 {[%clk 0:00:02]}  Rh4 {[%clk 0:00:05]} 66. Ke3 {[%clk 0:00:01]}  Re4+ {[%clk 0:00:05]} 67. Kd3 {[%clk 0:00:01]}  Rh4 {[%clk 0:00:05]} 68. Rh6 {[%clk 0:00:01]}  Kg5 {[%clk 0:00:05]} 69. Rh8 {[%clk 0:00:01]}  Rh3+ {[%clk 0:00:05]} 70. Ke4 {[%clk 0:00:02]}  Kg6 {[%clk 0:00:05]} 71. Kf4 {[%clk 0:00:02]}  Rh4+ {[%clk 0:00:05]} 72. Ke3 {[%clk 0:00:02]}  Rh1 {[%clk 0:00:06]} 73. Rg8+ {[%clk 0:00:01]}  Kf5 {[%clk 0:00:06]} 74. Rh8 {[%clk 0:00:02]}  h4 {[%clk 0:00:06]} 75. Rh5+ {[%clk 0:00:01]}  Kg6 {[%clk 0:00:07]} 76. Rh8 {[%clk 0:00:01]}  h3 {[%clk 0:00:07]} 77. Kf2 {[%clk 0:00:01]}  h2 {[%clk 0:00:07]} 78. Kg2 {[%clk 0:00:00]}  Rd1 {[%clk 0:00:08]} 0-1


[Site "https://www.chess.com"]

[Event "Titled Tuesday Blitz October 31 Early 2023"]
[White "Jia, Haoxiang"]
[Black "Ovezdurdyyeva, Jemal"]
[WhiteFideId "8602999"]
[BlackFideId "14001888"]
[WhiteElo "2588"]
[BlackElo "2361"]
[Result "1-0"]
[Round "3"]
[TimeControl "180+1"]
[Date "2023.10.31"]
[WhiteClock "0:00:53"]
[BlackClock "0:01:04"]
[Board "114"]

1. d4 {[%clk 0:03:00]}  Nf6 {[%clk 0:02:57]} 2. Bf4 {[%clk 0:02:59]}  e6 {[%clk 0:02:57]} 3. e3 {[%clk 0:02:59]}  b6 {[%clk 0:02:57]} 4. Nf3 {[%clk 0:02:58]}  Bb7 {[%clk 0:02:57]} 5. Nbd2 {[%clk 0:02:59]}  Be7 {[%clk 0:02:57]} 6. Bd3 {[%clk 0:02:57]}  O-O {[%clk 0:02:57]} 7. O-O {[%clk 0:02:57]}  c5 {[%clk 0:02:57]} 8. c3 {[%clk 0:02:57]}  d5 {[%clk 0:02:57]} 9. Ne5 {[%clk 0:02:54]}  Nc6 {[%clk 0:02:52]} 10. Qf3 {[%clk 0:02:50]}  cxd4 {[%clk 0:02:40]} 11. exd4 {[%clk 0:02:49]}  Nxe5 {[%clk 0:02:39]} 12. Bxe5 {[%clk 0:02:49]}  Ne8 {[%clk 0:02:39]} 13. Qh3 {[%clk 0:02:42]}  g6 {[%clk 0:02:38]} 14. Rae1 {[%clk 0:02:41]}  Bc8 {[%clk 0:02:29]} 15. Qh6 {[%clk 0:02:38]}  f6 {[%clk 0:02:29]} 16. Bg3 {[%clk 0:02:30]}  f5 {[%clk 0:02:03]} 17. Nf3 {[%clk 0:02:25]}  Bf6 {[%clk 0:01:57]} 18. Be5 {[%clk 0:01:45]}  Nd6 {[%clk 0:01:44]} 19. Ng5 {[%clk 0:01:07]}  Qe7 {[%clk 0:01:31]} 20. Bxd6 {[%clk 0:00:59]}  Bxg5 {[%clk 0:01:24]} 21. Bxe7 {[%clk 0:00:59]}  Bxh6 {[%clk 0:01:24]} 22. Bxf8 {[%clk 0:01:00]}  Bxf8 {[%clk 0:01:25]} 23. c4 {[%clk 0:01:00]}  Kf7 {[%clk 0:01:18]} 24. cxd5 {[%clk 0:00:57]}  exd5 {[%clk 0:01:18]} 25. Re5 {[%clk 0:00:57]}  Bb7 {[%clk 0:01:11]} 26. Rc1 {[%clk 0:00:57]}  Rb8 {[%clk 0:01:06]} 27. Rc7+ {[%clk 0:00:56]}  Kf6 {[%clk 0:01:06]} 28. Rxh7 {[%clk 0:00:55]}  Bd6 {[%clk 0:01:06]} 29. Re3 {[%clk 0:00:54]}  Rc8 {[%clk 0:01:04]} 30. Rxb7 {[%clk 0:00:53]} 1-0


[Site "https://www.chess.com"]